bitfinex-derivatives/quotes_ETHF0:USTF0_20250426
["timestamp","ask_amount","ask_price","bid_price","bid_amount"]
[1745626430704,1.7397,1794.3,1794.2,1.11401]
[1745626430900,1.11401,1794.2,1794.1,1.11402]
[1745626431104,8.5158,1794.2,1794.1,1.11402]
[1745626431404,10.1979,1794.2,1794.1,1.11402]
[1745626431604,6.9901,1794.2,1794.1,1.11402]
[1745626437712,8.10411,1794.2,1794.1,1.11402]
[1745626438315,7.8299,1794.2,1794.1,1.11402]
[1745626440612,11.0377,1794.2,1793.6,6.87182]
[1745626440819,1.11413,1794.0,1793.9,1.11415]
[1745626441313,2.77062,1794.1,1794.0,1.11413]
[1745626441507,2.77062,1794.1,1794.0,1.11183]
[1745626442110,6.9645,1794.1,1794.0,1.11183]
[1745626442812,8.07857,1794.1,1794.0,1.11183]
[1745626445311,11.28637,1794.1,1794.0,1.11183]
[1745626445513,1.11415,1794.0,1793.9,1.11414]
[1745626445809,1.6931,1794.0,1793.9,1.11414]
[1745626446210,7.0011,1794.0,1793.9,1.11414]
[1745626446713,7.0011,1794.0,1793.9,2.80834]
[1745626447217,1.6931,1794.0,1793.9,2.80834]
[1745626449415,5.308,1794.1,1794.0,1.11413]
[1745626449623,5.308,1794.1,1794.0,2.71693]
[1745626450222,2.589,1794.2,1794.1,1.11407]
[1745626450411,2.589,1794.2,1794.1,2.71687]
[1745626450916,3.70301,1794.2,1794.1,2.71687]
[1745626451213,9.01101,1794.2,1794.1,1.6028]
[1745626451525,9.01101,1794.2,1794.1,1.11407]
[1745626456632,7.897,1794.2,1793.8,3.61883]
[1745626456929,1.11419,1794.0,1793.9,1.11411]
[1745626457129,2.76033,1794.1,1794.0,1.11413]
[1745626458022,1.6462,1794.1,1794.0,1.11413]
[1745626458229,3.2078,1794.3,1794.2,1.11401]
[1745626458430,0.00255984,1794.4,1794.3,1.11394]
[1745626458925,0.00255984,1794.4,1794.3,6.11394]
[1745626459128,0.00255984,1794.4,1794.3,7.81354]
[1745626459732,0.00255984,1794.4,1794.3,11.02134]
[1745626459923,0.00255984,1794.4,1794.3,6.02134]
[1745626460124,0.00255984,1794.4,1794.3,2.81354]
[1745626460320,1.11643984,1794.4,1794.3,2.81354]
[1745626460530,1.72215984,1794.4,1794.2,7.22646]
[1745626460729,2.83606984,1794.4,1794.2,7.22646]
[1745626461033,2.83606984,1794.4,1794.3,1.11394]
[1745626461227,1.11646984,1794.4,1794.3,1.11394]
[1745626462325,6.42446984,1794.4,1794.3,1.11394]
[1745626463831,5.31055984,1794.4,1794.0,4.5903]
[1745626464025,6.42447984,1794.4,1794.1,1.7448]
[1745626464226,1.11647984,1794.4,1794.1,1.7448]
[1745626464530,1.11647984,1794.4,1794.2,1.11396]
[1745626464932,1.11394,1794.3,1794.2,1.11396]
[1745626465131,1.11648984,1794.4,1794.3,1.11394]
[1745626465527,1.11396,1794.3,1794.1,1.7448]
[1745626465722,1.11648984,1794.4,1794.2,1.11401]
[1745626465921,1.11648984,1794.4,1794.1,1.7448]
[1745626466139,1.11395,1794.3,1794.2,1.11396]
[1745626466427,6.42448984,1794.4,1794.3,1.11394]
[1745626466829,5.31055984,1794.4,1794.1,1.7448]
[1745626467024,1.11401,1794.3,1794.1,1.7448]
[1745626467224,1.11401,1794.2,1794.1,2.85882]
[1745626467430,0.00255984,1794.4,1794.2,1.114]
[1745626467932,1.11412,1794.1,1794.0,1.11407]
[1745626468129,1.11405,1794.2,1794.1,1.11404]
[1745626468334,1.94565,1794.2,1794.1,1.11404]
[1745626468837,0.8316,1794.2,1794.1,1.11404]
[1745626469234,6.1396,1794.2,1794.1,1.11404]
[1745626470838,7.25361,1794.2,1794.1,1.11404]
[1745626471835,6.1396,1794.2,1794.1,1.11404]
[1745626472037,7.25361,1794.2,1794.1,1.11404]
[1745626472234,6.1396,1794.2,1794.1,1.11404]
[1745626473037,7.25361,1794.2,1794.1,1.11404]
[1745626473238,1.11407,1794.1,1794.0,1.11407]
[1745626473440,0.8339,1794.1,1794.0,1.11407]
[1745626473739,1.94797,1794.1,1794.0,1.11407]
[1745626474141,7.25597,1794.1,1794.0,1.11407]
[1745626476143,7.25602,1794.1,1794.0,1.11413]
[1745626476342,6.1419,1794.1,1793.6,0.0147]
[1745626476544,1.11426,1793.8,1793.7,1.11426]
[1745626476744,1.11423,1793.9,1793.8,1.11425]
[1745626477339,1.11426,1793.8,1793.7,1.11427]
[1745626477537,1.92376,1793.8,1793.7,1.11427]
[1745626477741,1.11432,1793.7,1793.6,1.12903]
[1745626477936,0.8718,1793.7,1793.6,1.11433]
[1745626480639,4.901,1793.8,1793.7,1.11432]
[1745626481235,10.209,1793.8,1793.7,1.11432]
[1745626482443,7.0012,1793.8,1793.7,1.11432]
[1745626482638,7.0012,1793.8,1793.2,5.57295]
[1745626482639,2.7858,1793.7,1793.1,1.7202]
[1745626482838,1.11468,1793.2,1793.0,1.11473]
[1745626483037,3.2078,1793.3,1793.0,1.7202]
[1745626483236,1.6482,1793.1,1792.8,2.78266]
[1745626483443,1.6482,1793.1,1792.8,4.50286]
[1745626483444,1.11481,1792.9,1792.8,4.50286]
[1745626483644,1.6482,1793.1,1792.8,3.388]
[1745626483846,2.7629,1793.1,1793.0,1.11475]
[1745626484142,8.0709,1793.1,1792.9,1.11476]
[1745626484353,1.6482,1793.0,1792.9,1.11476]
[1745626484551,1.6482,1793.0,1792.9,2.83496]
[1745626486743,1.6378,1793.2,1793.1,1.11469]
[1745626487041,3.2791,1793.2,1793.1,1.11469]
[1745626487240,9.70173,1793.2,1793.0,1.7516]
[1745626487443,1.6413,1793.1,1793.0,2.8663]
[1745626490057,6.42222,1793.9,1793.4,1.1145]
[1745626490352,1.6102,1793.8,1793.6,1.11434]
[1745626490550,2.72449,1793.8,1793.6,1.11434]
[1745626490849,2.72449,1793.8,1793.7,1.11432]
[1745626491250,1.11432,1793.7,1793.6,2.81613]
[1745626491439,2.87392,1793.7,1793.6,2.81613]
[1745626491645,1.7596,1793.7,1793.6,2.81613]
[1745626493157,3.2078,1793.8,1793.7,1.11432]
[1745626493456,4.32206,1793.8,1793.7,2.70302]
[1745626493952,2.87382,1793.9,1793.8,1.11426]
[1745626494156,8.18182,1793.9,1793.8,1.11426]
[1745626494353,7.0676,1793.9,1793.8,1.11426]
[1745626494548,8.18179,1793.9,1793.8,1.11426]
[1745626498750,12.0676,1793.9,1793.1,3.2078]
[1745626498953,3.2078,1793.4,1792.8,2.78712]
[1745626499161,3.64502,1793.3,1793.2,1.11463]
[1745626499359,4.50667,1793.3,1793.2,1.11463]
[1745626499760,4.50669,1793.3,1793.2,1.11463]
[1745626500255,11.48653,1793.3,1792.7,7.63234]
[1745626500455,1.11471,1793.1,1793.0,1.11471]
[1745626500655,4.8256,1793.2,1793.1,1.11469]
[1745626501262,10.1336,1793.2,1793.1,1.11469]
[1745626502061,11.24823,1793.2,1793.1,1.11469]
[1745626504263,1.11471,1793.1,1793.0,1.11469]
[1745626504561,2.77241,1793.1,1793.0,1.11469]
[1745626504960,1.6577,1793.1,1793.0,1.11469]
[1745626505158,6.9657,1793.1,1793.0,1.11469]
[1745626505762,6.9657,1793.1,1792.9,2.86107]
[1745626505959,2.77245,1793.0,1792.9,1.11477]
[1745626506265,6.9657,1793.0,1792.9,1.11477]
[1745626507260,1.6577,1793.0,1792.9,1.11477]
[1745626507953,3.2078,1793.2,1792.8,1.6257]
[1745626508159,8.5548,1793.2,1793.1,1.11469]
[1745626508361,9.66943,1793.2,1793.1,1.11469]
[1745626509169,14.97743,1793.2,1793.1,1.11469]
[1745626510366,1.11481,1793.0,1792.9,1.11479]
[1745626510956,2.83114,1793.1,1793.0,1.11475]
[1745626511162,7.0244,1793.1,1793.0,1.11475]
[1745626511762,8.13909,1793.1,1793.0,1.11475]
[1745626513168,7.0244,1793.1,1793.0,1.11475]
[1745626515566,8.13909,1793.1,1793.0,1.11475]
[1745626515975,7.0244,1793.1,1793.0,1.11475]
[1745626516277,8.13909,1793.1,1793.0,1.11475]
[1745626517068,8.13909,1793.1,1792.3,3.2078]
[1745626517069,2.78691,1793.0,1792.3,3.2078]
[1745626517272,2.78691,1793.0,1792.2,4.78321]
[1745626517273,1.11519,1792.3,1792.2,4.78321]
[1745626517472,3.2078,1792.5,1792.4,1.11513]
[1745626517873,3.2078,1792.5,1792.0,4.86]
[1745626517874,3.2078,1792.5,1792.2,1.6446]
[1745626518074,1.747,1792.4,1792.3,1.11519]
[1745626518975,3.668,1792.6,1792.3,1.11519]
[1745626518976,1.6138,1792.6,1792.5,1.11506]
[1745626519180,1.6138,1792.8,1792.5,5.57534]
[1745626519376,1.6138,1792.8,1792.7,1.11494]
[1745626519570,2.72868,1792.8,1792.7,1.11494]
[1745626520076,2.72868,1792.8,1792.6,1.6208]
[1745626520279,4.32267,1792.9,1792.8,1.11488]
[1745626520668,4.32266,1792.9,1792.8,1.11488]
[1745626522275,5.96881,1793.1,1793.0,1.11475]
[1745626522470,9.63681,1793.1,1793.0,1.11475]
[1745626523180,14.94481,1793.1,1793.0,1.11475]
[1745626523477,13.8301,1793.1,1793.0,1.11475]
[1745626524370,8.5221,1793.1,1793.0,1.11475]
[1745626526479,4.8541,1793.1,1793.0,1.11475]
[1745626527681,5.96879,1793.1,1793.0,1.11475]
[1745626527873,1.11484,1792.9,1792.8,1.11481]
[1745626528375,1.11478,1793.0,1792.9,1.11475]
[1745626530383,6.42278,1793.0,1792.9,1.11475]
[1745626530681,8.04728,1793.0,1792.9,1.11475]
[1745626533481,6.9325,1793.0,1792.9,1.11475]
[1745626533881,8.04725,1793.0,1792.9,1.11475]
[1745626537087,6.9325,1793.0,1792.9,1.11475]
[1745626537277,8.04725,1793.0,1792.9,1.11475]
[1745626537889,1.11481,1792.9,1792.8,2.82853]
[1745626538089,2.82331,1792.9,1792.8,2.82853]
[1745626538587,2.82331,1792.9,1792.8,1.11483]
[1745626539079,8.13131,1792.9,1792.8,1.11483]
[1745626541281,7.0165,1792.9,1792.8,1.11483]
[1745626542299,1.7085,1792.9,1792.8,1.11483]
[1745626542701,2.82331,1792.9,1792.8,1.11483]
[1745626543199,8.13131,1792.9,1792.8,1.11483]
[1745626543993,1.11488,1792.8,1792.7,1.6966]
[1745626544299,2.8089,1792.8,1792.5,4.4783]
[1745626544497,3.6554,1792.8,1792.6,1.6329]
[1745626544695,1.115,1792.6,1792.3,0.8593]
[1745626545001,2.5447,1792.7,1792.3,1.6329]
[1745626545199,1.11513,1792.4,1792.3,1.6329]
[1745626545699,2.80913,1792.4,1792.3,1.6329]
[1745626546293,2.80913,1792.4,1792.2,4.0611]
[1745626546294,2.80917,1792.4,1792.2,4.0611]
[1745626546498,1.6532,1792.3,1792.2,4.0611]
[1745626546799,2.76839,1792.3,1792.2,4.0611]
[1745626546996,5.97619,1792.3,1792.1,1.7489]
[1745626548303,1.11525,1792.2,1792.1,1.7489]
[1745626548507,1.6532,1792.2,1791.9,5.94]
[1745626548700,1.11537,1792.0,1791.9,5.94]
[1745626549201,1.11537,1792.0,1791.8,1.7489]
[1745626549202,1.11544,1791.9,1791.8,1.7489]
[1745626549402,1.1155,1791.8,1791.7,0.8371]
[1745626549702,1.1156,1791.7,1791.5,1.7539]
[1745626549897,1.1156,1791.7,1791.5,2.5702]
[1745626550094,2.81755,1791.8,1791.5,3.68589]
[1745626550298,1.1155,1791.8,1791.6,4.9617]
[1745626550498,1.1155,1791.8,1791.7,1.7539]
[1745626554106,5.8411,1791.8,1791.4,9.1478]
[1745626554402,3.2078,1791.6,1791.0,5.94]
[1745626554701,6.54171,1791.5,1791.2,1.11584]
[1745626554900,1.11575,1791.4,1791.3,2.5759]
[1745626555302,2.71475,1791.4,1791.3,2.5759]
[1745626555701,2.71475,1791.4,1791.1,1.11589]
[1745626555906,1.11587,1791.3,1791.1,0.8684]
[1745626556208,1.599,1791.2,1791.1,2.4591]
[1745626556505,1.96878,1791.4,1791.1,3.57503]
[1745626556704,1.13051,1791.3,1791.2,1.5907]
[1745626556902,2.72951,1791.3,1791.2,1.5907]
[1745626559009,1.6137,1791.3,1791.2,1.5907]
[1745626559504,1.6137,1791.3,1791.2,2.70657]
[1745626559505,0.0147,1791.3,1791.2,2.70657]
[1745626560210,0.0147,1791.3,1791.2,8.01457]
[1745626561112,0.0147,1791.3,1791.2,11.22237]
[1745626561305,6.8778,1791.8,1791.7,1.11556]
[1745626561506,4.3233,1791.8,1791.6,2.76246]
[1745626561708,1.7584,1791.7,1791.6,2.76246]
[1745626562000,1.7584,1791.7,1791.6,1.6469]
[1745626562001,2.87396,1791.7,1791.6,1.6469]
[1745626562201,10.34792,1791.7,1791.3,1.11578]
[1745626562408,1.11571,1791.5,1791.4,1.11574]
[1745626562804,1.11576,1791.4,1791.2,4.8547]
[1745626563013,1.11579,1791.4,1791.2,4.32367]
[1745626563209,3.67481,1791.3,1791.2,3.2078]
[1745626563512,6.229,1791.3,1790.9,3.2078]
[1745626563715,2.87431,1791.2,1790.9,3.2078]
[1745626564010,1.7584,1791.1,1791.0,1.11594]
[1745626564409,4.4706,1791.3,1791.2,1.11587]
[1745626564713,6.8778,1791.4,1791.3,1.11581]
[1745626564902,4.9159,1791.4,1791.3,1.11581]
[1745626565808,3.2078,1791.4,1791.3,1.11581]
[1745626566013,1.7081,1791.7,1791.6,1.11562]
[1745626566407,2.82366,1791.7,1791.6,1.11562]
[1745626566912,1.7081,1791.7,1791.6,1.11562]
[1745626568215,1.11572,1791.5,1791.4,1.11573]
[1745626568710,1.11575,1791.4,1791.3,1.11577]
[1745626568911,0.8686,1791.4,1791.3,1.11577]
[1745626569509,2.4708,1791.4,1791.3,1.11577]
[1745626569714,2.4708,1791.4,1791.2,1.11582]
[1745626569909,1.6022,1791.3,1791.2,1.11582]
[1745626572219,0.8656,1791.5,1791.2,2.78969]
[1745626572520,5.7036,1791.6,1791.5,1.11569]
[1745626573021,2.4958,1791.6,1791.5,1.11569]
[1745626579028,1.6457,1791.6,1791.5,1.11569]
[1745626579227,5.3383,1791.8,1791.4,4.8437]
[1745626579420,1.7438,1791.7,1791.6,1.11562]
[1745626579621,1.7438,1791.7,1791.6,2.75152]
[1745626581117,6.8778,1792.1,1792.0,1.11537]
[1745626581318,9.3478,1792.1,1792.0,1.11537]
[1745626581517,1.11545,1791.9,1791.5,5.99687]
[1745626581722,1.11545,1791.9,1791.8,1.11546]
[1745626582124,6.42345,1791.9,1791.8,1.11546]
[1745626582828,5.308,1791.9,1791.8,1.11546]
[1745626583222,6.42344,1791.9,1791.8,1.11546]
[1745626583425,9.63124,1791.9,1791.8,1.11546]
[1745626585732,8.5158,1791.9,1791.8,1.11546]
[1745626586029,9.63124,1791.9,1791.8,1.11546]
[1745626586430,8.5158,1791.9,1791.8,1.11546]
[1745626586621,9.63124,1791.9,1791.8,1.11546]
[1745626587531,1.11554,1791.8,1791.7,1.1155]
[1745626588131,6.42354,1791.8,1791.7,1.1155]
[1745626588730,5.308,1791.8,1791.7,1.1155]
[1745626588927,6.4235,1791.8,1791.7,1.1155]
[1745626589231,5.308,1791.8,1791.7,1.1155]
[1745626589434,6.4235,1791.8,1791.7,1.1155]
[1745626589622,5.308,1791.8,1791.7,1.1155]
[1745626590236,1.1155,1791.8,1791.7,1.1155]
[1745626591229,6.4235,1791.8,1791.7,1.1155]
[1745626593234,2.78891,1791.7,1791.3,0.8382]
[1745626593532,1.11586,1791.3,1791.2,1.11585]
[1745626593725,1.11589,1791.2,1791.1,1.11586]
[1745626593929,1.11602,1791.0,1790.9,1.11602]
[1745626594326,4.32377,1791.1,1791.0,1.116]
[1745626594835,5.16647,1791.1,1791.0,1.116]
[1745626595141,6.1507,1791.1,1791.0,1.116]
[1745626596033,5.308,1791.1,1791.0,1.116]
[1745626596233,5.308,1791.1,1791.0,6.9195]
[1745626596836,5.308,1791.1,1791.0,10.1273]
[1745626597135,1.95839,1791.5,1791.4,1.11575]
[1745626599129,0.8427,1791.5,1791.4,1.11575]
[1745626599330,1.95839,1791.5,1791.4,1.11575]
[1745626599531,0.8427,1791.5,1791.4,1.11575]
[1745626599730,1.95839,1791.5,1791.4,1.11575]
[1745626600630,2.5387,1791.5,1791.4,1.11575]
[1745626601332,7.6995,1791.7,1791.6,1.11562]
[1745626601539,10.1575,1791.7,1791.6,1.11562]
[1745626601737,11.27306,1791.7,1791.6,1.11562]
[1745626602241,13.37326,1791.7,1791.6,1.11562]
[1745626602833,13.37326,1791.7,1791.3,2.78947]
[1745626603035,1.6274,1791.6,1791.5,1.11563]
[1745626603430,2.74302,1791.6,1791.5,1.11563]
[1745626603731,1.6274,1791.6,1791.5,1.11563]
[1745626604135,6.9354,1791.6,1791.5,1.11563]
[1745626605639,8.05102,1791.6,1791.5,1.11563]
[1745626605836,6.9354,1791.6,1791.5,1.11563]
[1745626607140,1.6274,1791.6,1791.5,1.11563]
[1745626607438,2.74302,1791.6,1791.5,1.11563]
[1745626607639,1.11569,1791.5,1791.4,2.80021]
[1745626607835,2.87209,1791.5,1791.4,1.11571]
[1745626608438,2.87209,1791.5,1791.2,9.39646]
[1745626608439,1.11583,1791.3,1791.2,1.11583]
[1745626609137,3.71063,1791.3,1791.2,1.11583]
[1745626610341,6.91843,1791.3,1791.2,1.11583]
[1745626611139,2.5948,1791.3,1791.2,1.11583]
[1745626612043,3.71061,1791.3,1791.2,1.11583]
[1745626612347,2.5948,1791.3,1791.2,1.11583]
[1745626613647,0.7937,1791.4,1791.3,1.11581]
[1745626613838,3.2078,1791.7,1791.2,6.80437]
[1745626614036,8.4701,1791.7,1791.6,1.11562]
[1745626614732,9.58572,1791.7,1791.5,1.11564]
[1745626614938,3.50712,1791.6,1791.5,1.11564]
[1745626615241,1.11569,1791.5,1791.4,1.9653]
[1745626615443,2.4479,1791.5,1791.4,1.1157]
[1745626615638,3.56359,1791.5,1791.4,1.1157]
[1745626615842,1.11577,1791.4,1791.3,1.11576]
[1745626616138,2.70207,1791.4,1791.3,1.11576]
[1745626616538,1.5863,1791.4,1791.3,1.11576]
[1745626617242,2.70205,1791.4,1791.3,1.11576]
[1745626618945,1.11581,1791.3,1791.2,2.83552]
[1745626619246,5.93111,1791.3,1791.2,2.83552]
[1745626619448,6.76171,1791.3,1791.2,2.83552]
[1745626619643,1.11587,1791.2,1791.1,1.11589]
[1745626619850,1.11595,1791.1,1791.0,1.11595]
[1745626620050,1.91605,1791.1,1791.0,1.11595]
[1745626620742,0.8001,1791.1,1791.0,1.11595]
[1745626620942,1.11591,1791.2,1791.1,1.11593]
[1745626621350,2.77211,1791.2,1791.1,1.11593]
[1745626623347,1.11595,1791.1,1791.0,1.11595]
[1745626623557,1.11606,1790.9,1790.8,1.11606]
[1745626623947,1.11609,1790.9,1790.8,1.11609]
[1745626624148,2.4286,1790.9,1790.8,1.11609]
[1745626624349,3.54466,1790.9,1790.8,1.11609]
[1745626626656,1.11612,1790.8,1790.7,2.86377]
[1745626626858,1.11612,1790.8,1790.7,2.86376]
[1745626627961,5.1494,1790.9,1790.8,1.11612]
[1745626628169,10.4574,1790.9,1790.8,1.11612]
[1745626629467,1.11612,1790.8,1790.7,2.86372]
[1745626630060,1.11612,1790.8,1790.7,1.11612]
[1745626630354,6.42412,1790.8,1790.7,1.11612]
[1745626630962,6.42412,1790.8,1790.6,1.6537]
[1745626630963,1.11618,1790.7,1790.6,2.7699]
[1745626631170,1.91838,1790.7,1790.6,1.1162]
[1745626631768,1.91838,1790.7,1790.5,0.8107]
[1745626632063,3.667,1790.6,1790.2,3.2078]
[1745626632369,1.11652,1790.2,1790.1,1.11649]
[1745626632572,1.98096,1790.5,1790.4,1.11637]
[1745626633067,1.98096,1790.5,1790.0,4.45575]
[1745626633068,0.8646,1790.5,1790.0,4.45575]
[1745626633268,1.11646,1790.3,1790.2,1.11644]
[1745626634159,1.1165,1790.2,1790.1,2.83894]
[1745626634365,4.3243,1790.2,1790.1,1.11654]
[1745626635464,1.11656,1790.1,1790.0,3.65066]
[1745626635666,1.94846,1790.1,1790.0,1.11656]
[1745626636171,1.6646,1790.1,1790.0,1.11656]
[1745626636371,4.3243,1790.2,1790.1,1.11656]
[1745626637472,4.3243,1790.2,1790.0,2.73777]
[1745626637473,1.11656,1790.1,1790.0,2.73777]
[1745626637674,1.96546,1790.1,1790.0,1.11657]
[1745626638071,1.11662,1790.0,1789.9,2.70895]
[1745626638376,1.11674,1789.9,1789.8,1.11671]
[1745626638871,1.11681,1789.8,1789.7,1.11678]
[1745626639076,5.17351,1789.8,1789.7,1.11678]
[1745626639373,1.11684,1789.7,1789.6,1.11682]
[1745626639974,5.1735,1789.8,1789.7,1.11681]
[1745626640175,4.0567,1789.8,1789.7,1.11681]
[1745626641273,5.17345,1789.8,1789.7,1.11681]
[1745626641571,0.8169,1790.0,1789.9,1.11668]
[1745626641777,1.11662,1790.1,1790.0,1.11658]
[1745626641971,3.57082,1790.1,1790.0,1.11658]
[1745626642879,1.11662,1790.0,1789.9,2.77034]
[1745626643072,2.71292,1790.0,1789.9,2.77034]
[1745626643377,2.4509,1790.0,1789.9,2.77034]
[1745626643568,1.11672,1789.9,1789.8,1.11669]
[1745626643765,2.71302,1789.9,1789.8,1.11669]
[1745626644172,1.11678,1789.8,1789.7,1.11676]
[1745626644467,1.11681,1789.7,1789.6,2.77053]
[1745626644866,2.79411,1789.7,1789.6,2.77053]
[1745626645180,2.79411,1789.7,1789.6,1.11683]
[1745626645879,1.11687,1789.6,1789.5,2.7171]
[1745626646075,3.62657,1789.6,1789.5,2.7171]
[1745626646280,2.5097,1789.6,1789.5,2.7171]
[1745626647680,4.0739,1789.8,1789.7,1.11681]
[1745626647879,3.2078,1789.8,1789.7,1.11681]
[1745626648479,3.2078,1789.8,1789.7,2.73181]
[1745626648680,6.44548,1789.9,1789.8,1.11675]
[1745626648881,7.99348,1789.9,1789.8,1.11675]
[1745626649585,3.669,1789.9,1789.8,1.11675]
[1745626649785,3.669,1789.9,1789.8,1.97475]
[1745626649979,0.8592,1790.0,1789.9,1.11668]
[1745626650196,3.687,1790.0,1789.9,2.78648]
[1745626650483,3.687,1790.0,1789.9,3.60728]
[1745626651083,3.687,1790.0,1789.9,8.91528]
[1745626651284,7.72,1790.2,1790.1,1.11656]
[1745626651882,8.8365,1790.2,1790.1,1.11656]
[1745626652388,4.033,1790.2,1790.1,1.11656]
[1745626652889,2.79081,1790.5,1790.2,3.90775]
[1745626652890,3.687,1790.4,1790.2,3.90775]
[1745626653084,6.44744,1790.7,1790.5,1.11627]
[1745626653390,5.3312,1790.7,1790.4,2.79133]
[1745626653589,1.11629,1790.6,1790.5,1.11631]
[1745626656183,6.44743,1790.7,1790.6,1.11625]
[1745626656388,2.76043,1790.7,1790.6,1.11625]
[1745626656585,5.3312,1790.7,1790.4,1.675]
[1745626656785,1.11628,1790.6,1790.5,1.11627]
[1745626658286,1.11631,1790.5,1790.4,2.79136]
[1745626658793,1.11641,1790.4,1790.3,1.11639]
[1745626658989,1.98211,1790.4,1790.3,1.11639]
[1745626659186,1.11643,1790.3,1790.2,4.32427]
[1745626659389,1.94143,1790.3,1790.2,3.2078]
[1745626659591,1.1165,1790.2,1790.1,2.83621]
[1745626660088,1.94148,1790.3,1790.2,1.1165]
[1745626660290,1.1165,1790.2,1790.1,2.83623]
[1745626660482,2.7692,1790.2,1790.1,2.83623]
[1745626660689,1.6527,1790.2,1790.1,2.83623]
[1745626661889,2.7692,1790.2,1790.1,2.83623]
[1745626662101,1.65013473,1790.2,1790.1,2.83623]
[1745626662590,2.76663473,1790.2,1790.1,2.83623]
[1745626662796,1.65013473,1790.2,1790.1,2.83623]
[1745626663191,2.76663473,1790.2,1790.1,2.83623]
[1745626664392,1.65013473,1790.2,1790.1,2.83623]
[1745626664986,2.76663473,1790.2,1790.1,2.83623]
[1745626665193,1.65013473,1790.2,1790.1,2.83623]
[1745626667785,4.512,1790.3,1790.2,1.1165]
[1745626667988,3.687,1790.3,1790.2,2.7168]
[1745626668897,3.687,1790.3,1790.2,5.9246]
[1745626669095,0.8657,1790.4,1790.3,1.11635]
[1745626669096,1.11641,1790.4,1790.3,1.11635]
[1745626673300,1.99251,1790.4,1790.3,1.11635]
[1745626673504,0.8761,1790.4,1790.3,1.11635]
[1745626673896,0.8761,1790.4,1790.3,2.77925]
[1745626676799,4.80327,1790.6,1790.3,1.6629]
[1745626677004,1.11635,1790.5,1790.4,1.11631]
[1745626677307,5.93962,1790.7,1790.6,1.11625]
[1745626677504,9.62662,1790.7,1790.6,1.11625]
[1745626678507,1.11625,1790.6,1790.5,1.11626]
[1745626678798,1.11637,1790.5,1790.4,1.11633]
[1745626678994,1.11637,1790.4,1790.3,1.11637]
[1745626679195,1.91767,1790.4,1790.3,1.11637]
[1745626679909,5.308,1790.5,1790.4,1.11637]
[1745626680105,3.2078,1790.7,1790.6,1.11625]
[1745626680405,3.679,1791.0,1790.9,1.11606]
[1745626680709,1.11593,1791.2,1791.1,1.11592]
[1745626681103,2.84663,1791.2,1791.1,1.11592]
[1745626681304,1.7307,1791.2,1791.1,1.11592]
[1745626681607,1.11593,1791.1,1791.0,2.86995]
[1745626681807,1.96523,1791.1,1791.0,2.86995]
[1745626683197,0.8493,1791.1,1791.0,2.86995]
[1745626683398,1.96523,1791.1,1791.0,2.86995]
[1745626683604,3.59793,1791.1,1791.0,2.86995]
[1745626683809,2.482,1791.1,1791.0,2.86995]
[1745626684716,4.79486,1791.3,1791.2,1.11587]
[1745626685019,7.28336,1791.3,1791.2,1.11587]
[1745626685315,12.59136,1791.3,1791.2,1.11587]
[1745626686215,11.4755,1791.3,1791.2,1.11587]
[1745626686513,5.308,1791.3,1791.2,1.11587]
[1745626686719,5.308,1791.3,1791.2,5.16547]
[1745626687216,3.679,1791.6,1791.5,1.11569]
[1745626687709,0.8416,1791.7,1791.6,1.11562]
[1745626688109,6.1496,1791.7,1791.6,1.11562]
[1745626688516,9.02196,1791.7,1791.6,1.11562]
[1745626688815,9.02202,1791.7,1791.6,1.11562]
[1745626690507,7.9064,1791.7,1791.6,1.11562]
[1745626691214,1.7568,1791.7,1791.6,1.11562]
[1745626691924,1.7568,1791.7,1791.6,2.87372]
[1745626692716,3.678,1791.8,1791.7,1.11556]
[1745626692917,3.678,1791.8,1791.7,2.82256]
[1745626693425,4.7935,1791.8,1791.7,2.82256]
[1745626693626,2.7521,1791.8,1791.7,2.82256]
[1745626694222,1.6366,1791.8,1791.5,1.11564]
[1745626694419,1.11567,1791.6,1791.5,1.11564]
[1745626694620,5.3146,1791.7,1791.6,1.11562]
[1745626695125,10.6226,1791.7,1791.6,1.11562]
[1745626695725,5.308,1791.7,1791.6,1.11562]
[1745626695927,5.308,1791.7,1791.6,2.84912]
[1745626696121,1.11556,1791.7,1791.6,2.84912]
[1745626696319,1.7403,1791.7,1791.6,2.84912]
[1745626696520,3.678,1791.8,1791.7,1.11556]
[1745626696716,3.678,1791.8,1791.7,2.84906]
[1745626697121,5.4183,1791.8,1791.7,2.84906]
[1745626697327,1.7403,1791.8,1791.7,2.84906]
[1745626698527,2.8558,1791.8,1791.7,2.84906]
[1745626700131,8.1638,1791.8,1791.7,2.84906]
[1745626700533,7.0483,1791.8,1791.7,2.84906]
[1745626701223,1.7403,1791.8,1791.7,2.84906]
[1745626701427,2.8558,1791.8,1791.7,2.84906]
[1745626701837,1.7403,1791.8,1791.7,2.84906]
[1745626702024,2.8558,1791.8,1791.7,2.84906]
[1745626702427,1.7403,1791.8,1791.7,2.84906]
[1745626703126,1.7403,1791.8,1791.7,3.70276]
[1745626703536,4.5085,1791.9,1791.8,1.1155]
[1745626703835,7.32214,1791.9,1791.8,2.7488]
[1745626704631,6.2067,1791.9,1791.8,2.7488]
[1745626705034,7.32214,1791.9,1791.8,2.7488]
[1745626705335,6.2067,1791.9,1791.8,2.7488]